[Event "Early-Titled-Tuesday-Blitz-January-30-2024"]
[Site "Chess.com"]
[Date "2024.01.30"]
[Round "3"]
[White "Sjakkerntobi"]
[Black "szefru"]
[Result "1-0"]
[WhiteElo "2515"]
[BlackElo "2277"]
[TimeControl "180+1"]
[EndTime "8:29:27 PST"]
[Termination "Sjakkerntobi won by resignation"]

1. e4 {[%clk 0:03:00.9]} 1... e5 {[%clk 0:02:57.4]} 2. Nf3 {[%clk 0:02:59.4]}
2... Nc6 {[%clk 0:02:57.1]} 3. Bc4 {[%clk 0:03:00]} 3... Nf6 {[%clk 0:02:56.8]}
4. d3 {[%clk 0:03:00.4]} 4... Be7 {[%clk 0:02:56.3]} 5. O-O {[%clk 0:02:59.8]}
5... O-O {[%clk 0:02:56.3]} 6. Nc3 {[%clk 0:02:59.7]} 6... d6 {[%clk 0:02:52.3]}
7. a4 {[%clk 0:02:59.7]} 7... Bg4 {[%clk 0:02:50.9]} 8. Be3 {[%clk 0:02:57.6]}
8... Qd7 {[%clk 0:02:40.8]} 9. h3 {[%clk 0:02:54]} 9... Bh5 {[%clk 0:02:40.7]}
10. a5 {[%clk 0:02:28.2]} 10... Nd8 {[%clk 0:02:31.8]} 11. d4 {[%clk 0:02:21.6]}
11... exd4 {[%clk 0:02:20.8]} 12. Bxd4 {[%clk 0:02:22.5]} 12... Ne6 {[%clk
0:02:18.8]} 13. Be3 {[%clk 0:02:21.9]} 13... h6 {[%clk 0:02:03.2]} 14. Be2
{[%clk 0:02:15.6]} 14... Nc5 {[%clk 0:01:56.3]} 15. e5 {[%clk 0:02:13.5]} 15...
dxe5 {[%clk 0:01:53.4]} 16. Nxe5 {[%clk 0:02:07.1]} 16... Qxd1 {[%clk
0:01:51.9]} 17. Rfxd1 {[%clk 0:02:03.9]} 17... Bxe2 {[%clk 0:01:52.5]} 18. Nxe2
{[%clk 0:02:04.8]} 18... Rad8 {[%clk 0:01:48.7]} 19. Nc3 {[%clk 0:01:49.5]}
19... b6 {[%clk 0:01:12.7]} 20. Nc6 {[%clk 0:01:39.7]} 20... Rxd1+ {[%clk
0:01:10.7]} 21. Rxd1 {[%clk 0:01:40.6]} 21... Bd6 {[%clk 0:01:09.1]} 22. Nb5
{[%clk 0:01:38.1]} 22... bxa5 {[%clk 0:00:45.8]} 23. Nxd6 {[%clk 0:01:31.6]}
23... cxd6 {[%clk 0:00:46.7]} 24. Rxd6 {[%clk 0:01:32.2]} 24... Na4 {[%clk
0:00:40.5]} 25. b3 {[%clk 0:01:29.4]} 25... Nc3 {[%clk 0:00:37.5]} 26. Nxa7
{[%clk 0:01:19.1]} 26... a4 {[%clk 0:00:28.7]} 27. bxa4 {[%clk 0:01:18.3]} 27...
Nxa4 {[%clk 0:00:27.7]} 28. Bd4 {[%clk 0:01:18.6]} 28... Ne4 {[%clk 0:00:15.2]}
29. Rc6 {[%clk 0:01:09.2]} 29... Rd8 {[%clk 0:00:14.2]} 30. Rc4 {[%clk
0:01:05.8]} 30... Nac5 {[%clk 0:00:03.1]} 31. Bxc5 {[%clk 0:01:03.8]} 31... Nd2
{[%clk 0:00:02.2]} 32. Rd4 {[%clk 0:01:03.3]} 1-0

[Event "Early-Titled-Tuesday-Blitz-January-30-2024"]
[Site "Chess.com"]
[Date "2024.01.30"]
[Round "3"]
[White "Druid24"]
[Black "Sebastian"]
[Result "0-1"]
[WhiteElo "2713"]
[BlackElo "2962"]
[TimeControl "180+1"]
[EndTime "8:29:28 PST"]
[Termination "Sebastian won by resignation"]

1. e4 {[%clk 0:03:00.9]} 1... c5 {[%clk 0:02:59.4]} 2. Nf3 {[%clk 0:03:01.5]}
2... d6 {[%clk 0:02:59.8]} 3. d4 {[%clk 0:03:01.7]} 3... cxd4 {[%clk 0:03:00.4]}
4. Nxd4 {[%clk 0:03:02.6]} 4... Nf6 {[%clk 0:03:00.8]} 5. Nc3 {[%clk 0:03:03.3]}
5... a6 {[%clk 0:03:01.4]} 6. Bd3 {[%clk 0:03:03.9]} 6... e5 {[%clk 0:03:00.4]}
7. Nde2 {[%clk 0:03:04.3]} 7... Be6 {[%clk 0:02:56.8]} 8. O-O {[%clk 0:03:01.1]}
8... Nc6 {[%clk 0:02:56.7]} 9. f4 {[%clk 0:03:00.9]} 9... exf4 {[%clk 0:02:56]}
10. Nxf4 {[%clk 0:03:01.8]} 10... Ne5 {[%clk 0:02:52.9]} 11. Kh1 {[%clk
0:03:01.3]} 11... g6 {[%clk 0:02:45.4]} 12. Nxe6 {[%clk 0:02:50.9]} 12... fxe6
{[%clk 0:02:45.2]} 13. Bg5 {[%clk 0:02:51.5]} 13... Bg7 {[%clk 0:02:45.3]} 14.
Qe2 {[%clk 0:02:45.2]} 14... O-O {[%clk 0:02:44.6]} 15. Rf2 {[%clk 0:02:36.4]}
15... Qb6 {[%clk 0:02:21.1]} 16. Raf1 {[%clk 0:02:00.1]} 16... Nfg4 {[%clk
0:02:19.8]} 17. Rxf8+ {[%clk 0:01:59.9]} 17... Rxf8 {[%clk 0:02:20.5]} 18. Rxf8+
{[%clk 0:01:53.5]} 18... Kxf8 {[%clk 0:02:19.9]} 19. Nd1 {[%clk 0:01:54.4]}
19... Qa5 {[%clk 0:01:54.3]} 20. h3 {[%clk 0:01:18.7]} 20... Nxd3 {[%clk
0:01:43.9]} 21. Qxg4 {[%clk 0:00:56.2]} 21... Qe1+ {[%clk 0:01:36.3]} 22. Kh2
{[%clk 0:00:56.1]} 22... Be5+ {[%clk 0:01:23.3]} 23. g3 {[%clk 0:00:56.2]} 23...
Nc5 {[%clk 0:01:06.8]} 24. Qf3+ {[%clk 0:00:47.1]} 24... Ke8 {[%clk 0:01:03.6]}
25. Nf2 {[%clk 0:00:47.4]} 25... Bd4 {[%clk 0:00:58.8]} 26. Qd1 {[%clk
0:00:08.1]} 26... Qxf2+ {[%clk 0:00:57.4]} 27. Kh1 {[%clk 0:00:08.7]} 27... Nxe4
{[%clk 0:00:57.3]} 28. Bf4 {[%clk 0:00:08.6]} 28... e5 {[%clk 0:00:55.4]} 29. c3
{[%clk 0:00:03.8]} 29... exf4 {[%clk 0:00:55.1]} 0-1

[Event "Early-Titled-Tuesday-Blitz-January-30-2024"]
[Site "Chess.com"]
[Date "2024.01.30"]
[Round "3"]
[White "Matibar"]
[Black "krucki03"]
[Result "1-0"]
[WhiteElo "2800"]
[BlackElo "2535"]
[TimeControl "180+1"]
[EndTime "8:29:29 PST"]
[Termination "Matibar won by resignation"]

1. Nf3 {[%clk 0:03:00.9]} 1... c5 {[%clk 0:02:58.2]} 2. e4 {[%clk 0:02:59.6]}
2... d6 {[%clk 0:02:54.2]} 3. c3 {[%clk 0:02:59.1]} 3... Nf6 {[%clk 0:02:53.5]}
4. Be2 {[%clk 0:02:59.3]} 4... Nc6 {[%clk 0:02:47.9]} 5. d4 {[%clk 0:02:53.1]}
5... cxd4 {[%clk 0:02:44.9]} 6. cxd4 {[%clk 0:02:49.4]} 6... d5 {[%clk
0:02:43.6]} 7. e5 {[%clk 0:02:47.3]} 7... Ne4 {[%clk 0:02:43.8]} 8. Nc3 {[%clk
0:02:45.6]} 8... Nxc3 {[%clk 0:02:41.2]} 9. bxc3 {[%clk 0:02:45.7]} 9... e6
{[%clk 0:02:37.1]} 10. h4 {[%clk 0:02:42.2]} 10... Bd7 {[%clk 0:02:30.7]} 11. h5
{[%clk 0:02:42.3]} 11... h6 {[%clk 0:02:27.7]} 12. Kf1 {[%clk 0:02:28.1]} 12...
Na5 {[%clk 0:02:24.3]} 13. Bd2 {[%clk 0:02:27.4]} 13... Rc8 {[%clk 0:02:17.2]}
14. Be1 {[%clk 0:02:27]} 14... Nc4 {[%clk 0:02:14]} 15. Rh4 {[%clk 0:02:09.7]}
15... a5 {[%clk 0:01:56.8]} 16. Rf4 {[%clk 0:02:07.3]} 16... a4 {[%clk
0:01:50.9]} 17. Qb1 {[%clk 0:01:59.5]} 17... b5 {[%clk 0:01:41.7]} 18. Bd3
{[%clk 0:01:58.8]} 18... Ba3 {[%clk 0:01:10.2]} 19. Qc2 {[%clk 0:01:44.5]} 19...
Bb2 {[%clk 0:01:05.8]} 20. Rb1 {[%clk 0:01:44.4]} 20... a3 {[%clk 0:01:02.5]}
21. Rg4 {[%clk 0:01:31.4]} 21... Kf8 {[%clk 0:00:48.8]} 22. Qe2 {[%clk
0:01:27.9]} 22... Be8 {[%clk 0:00:28.6]} 23. Nh4 {[%clk 0:01:27]} 23... Rc7
{[%clk 0:00:12.5]} 24. Qf3 {[%clk 0:01:26.3]} 24... Kg8 {[%clk 0:00:10]} 25. Kg1
{[%clk 0:01:10.5]} 25... Rb7 {[%clk 0:00:08.7]} 26. Rd1 {[%clk 0:00:53.5]} 26...
Rc7 {[%clk 0:00:03.7]} 27. Qg3 {[%clk 0:00:51.5]} 27... f5 {[%clk 0:00:02]} 28.
exf6 {[%clk 0:00:51.6]} 28... Qxf6 {[%clk 0:00:02.6]} 29. Qxc7 {[%clk
0:00:51.9]} 1-0

[Event "Early-Titled-Tuesday-Blitz-January-30-2024"]
[Site "Chess.com"]
[Date "2024.01.30"]
[Round "3"]
[White "Al_Shima"]
[Black "RobertoJBM"]
[Result "0-1"]
[WhiteElo "2337"]
[BlackElo "2826"]
[TimeControl "180+1"]
[EndTime "8:29:34 PST"]
[Termination "RobertoJBM won by resignation"]

1. d4 {[%clk 0:03:00.9]} 1... d5 {[%clk 0:02:59.6]} 2. Nc3 {[%clk 0:03:01.5]}
2... c6 {[%clk 0:03:00.3]} 3. Bf4 {[%clk 0:03:01.8]} 3... Bf5 {[%clk 0:02:59.3]}
4. e3 {[%clk 0:03:02.1]} 4... e6 {[%clk 0:02:59.4]} 5. f3 {[%clk 0:03:02.2]}
5... Bb4 {[%clk 0:02:58.8]} 6. g4 {[%clk 0:03:01.9]} 6... Bg6 {[%clk 0:02:59]}
7. h4 {[%clk 0:03:02.2]} 7... h5 {[%clk 0:02:59]} 8. g5 {[%clk 0:03:02.7]} 8...
Qa5 {[%clk 0:02:55.5]} 9. Ne2 {[%clk 0:02:53.2]} 9... Nd7 {[%clk 0:02:53.1]} 10.
a3 {[%clk 0:02:53.2]} 10... Bf8 {[%clk 0:02:49.5]} 11. Ng3 {[%clk 0:02:30.1]}
11... Ne7 {[%clk 0:02:44.7]} 12. Bd3 {[%clk 0:02:24.6]} 12... Qb6 {[%clk
0:02:38.8]} 13. b4 {[%clk 0:01:54.5]} 13... a5 {[%clk 0:02:18.6]} 14. Rb1 {[%clk
0:01:28]} 14... axb4 {[%clk 0:02:17]} 15. axb4 {[%clk 0:01:28.9]} 15... Bxd3
{[%clk 0:02:10.9]} 16. Qxd3 {[%clk 0:01:21.7]} 16... Ng6 {[%clk 0:02:08.3]} 17.
b5 {[%clk 0:00:41.8]} 17... c5 {[%clk 0:02:02.7]} 18. Nce2 {[%clk 0:00:31.1]}
18... Bd6 {[%clk 0:01:46.9]} 19. Bxd6 {[%clk 0:00:27.9]} 19... Qxd6 {[%clk
0:01:47.8]} 20. f4 {[%clk 0:00:22.8]} 20... Ne7 {[%clk 0:01:41]} 21. O-O {[%clk
0:00:20]} 21... g6 {[%clk 0:01:36.1]} 22. c3 {[%clk 0:00:18.8]} 22... O-O {[%clk
0:01:23.8]} 23. e4 {[%clk 0:00:18.7]} 23... cxd4 {[%clk 0:01:22.1]} 24. Qxd4
{[%clk 0:00:15.5]} 24... Qc5 {[%clk 0:01:18.8]} 25. f5 {[%clk 0:00:08.2]} 25...
Ra4 {[%clk 0:01:05.9]} 26. Qxc5 {[%clk 0:00:05.8]} 26... Nxc5 {[%clk 0:01:06.8]}
27. fxg6 {[%clk 0:00:02.9]} 27... fxg6 {[%clk 0:01:05.8]} 28. exd5 {[%clk
0:00:03.2]} 28... Nxd5 {[%clk 0:01:03.6]} 29. Rxf8+ {[%clk 0:00:03.1]} 29...
Kxf8 {[%clk 0:01:04.5]} 30. Rf1+ {[%clk 0:00:02.9]} 30... Ke7 {[%clk 0:01:04.3]}
31. Kh2 {[%clk 0:00:02.1]} 31... Rxh4+ {[%clk 0:01:03.1]} 32. Kg2 {[%clk
0:00:02.3]} 32... Ne3+ {[%clk 0:01:01.9]} 33. Kf2 {[%clk 0:00:01.5]} 33... Nxf1
{[%clk 0:01:02.4]} 34. Kxf1 {[%clk 0:00:02.4]} 34... Rg4 {[%clk 0:01:01.6]} 35.
Kf2 {[%clk 0:00:02.5]} 0-1

[Event "Early-Titled-Tuesday-Blitz-January-30-2024"]
[Site "Chess.com"]
[Date "2024.01.30"]
[Round "3"]
[White "margarita_2703"]
[Black "Mesa_1"]
[Result "1-0"]
[WhiteElo "2337"]
[BlackElo "2557"]
[TimeControl "180+1"]
[EndTime "8:29:35 PST"]
[Termination "margarita_2703 won on time"]

1. e4 {[%clk 0:03:00.9]} 1... d6 {[%clk 0:03:00.7]} 2. d4 {[%clk 0:02:49.6]}
2... Nf6 {[%clk 0:03:01.2]} 3. Nc3 {[%clk 0:02:48.9]} 3... e5 {[%clk 0:03:01.7]}
4. Nf3 {[%clk 0:02:48]} 4... Nbd7 {[%clk 0:03:01.8]} 5. Bc4 {[%clk 0:02:46.1]}
5... Be7 {[%clk 0:03:02.4]} 6. h3 {[%clk 0:02:42.7]} 6... O-O {[%clk 0:03:02.2]}
7. Be3 {[%clk 0:02:42.1]} 7... c6 {[%clk 0:03:02.1]} 8. a4 {[%clk 0:02:41.6]}
8... h6 {[%clk 0:03:02]} 9. O-O {[%clk 0:02:41.4]} 9... Re8 {[%clk 0:02:59]} 10.
Re1 {[%clk 0:02:39.9]} 10... Qc7 {[%clk 0:02:56.7]} 11. Qd2 {[%clk 0:02:37.8]}
11... Bf8 {[%clk 0:02:49.2]} 12. Rad1 {[%clk 0:02:34.9]} 12... exd4 {[%clk
0:02:47.1]} 13. Bxd4 {[%clk 0:02:34]} 13... Ne5 {[%clk 0:02:46.3]} 14. Nxe5
{[%clk 0:02:34.3]} 14... dxe5 {[%clk 0:02:47.2]} 15. Be3 {[%clk 0:02:34.9]}
15... Be6 {[%clk 0:02:35.2]} 16. Bxe6 {[%clk 0:02:33.7]} 16... Rxe6 {[%clk
0:02:36.1]} 17. f3 {[%clk 0:02:27.9]} 17... a6 {[%clk 0:02:24.9]} 18. Ne2 {[%clk
0:02:24.1]} 18... b5 {[%clk 0:02:18.3]} 19. axb5 {[%clk 0:02:18]} 19... cxb5
{[%clk 0:02:13.6]} 20. c3 {[%clk 0:02:15.5]} 20... Bc5 {[%clk 0:02:08.2]} 21.
Ng3 {[%clk 0:02:14.2]} 21... Rd6 {[%clk 0:02:02.7]} 22. Qf2 {[%clk 0:02:13.1]}
22... Bxe3 {[%clk 0:02:00.4]} 23. Qxe3 {[%clk 0:02:12.7]} 23... Rad8 {[%clk
0:02:00.9]} 24. Rxd6 {[%clk 0:02:11.9]} 24... Qxd6 {[%clk 0:01:58]} 25. Nf5
{[%clk 0:02:12.4]} 25... Qd2 {[%clk 0:01:57.5]} 26. Qe2 {[%clk 0:02:04.6]} 26...
Qxe2 {[%clk 0:01:40.6]} 27. Rxe2 {[%clk 0:02:03.9]} 27... Nh5 {[%clk 0:01:40.7]}
28. Ne7+ {[%clk 0:02:02.9]} 28... Kf8 {[%clk 0:01:37.1]} 29. Nd5 {[%clk
0:02:03.8]} 29... Nf4 {[%clk 0:01:35.3]} 30. Nxf4 {[%clk 0:01:48.7]} 30... exf4
{[%clk 0:01:36.2]} 31. Kf2 {[%clk 0:01:47.7]} 31... Ke7 {[%clk 0:01:36.6]} 32.
Ke1 {[%clk 0:01:48]} 32... Ke6 {[%clk 0:01:36.7]} 33. Rd2 {[%clk 0:01:48.1]}
33... Rxd2 {[%clk 0:01:35.2]} 34. Kxd2 {[%clk 0:01:49]} 34... Kd6 {[%clk
0:01:35.4]} 35. Kd3 {[%clk 0:01:48.9]} 35... Kc5 {[%clk 0:01:20.9]} 36. b4+
{[%clk 0:01:47.5]} 36... Kc6 {[%clk 0:01:19.4]} 37. Kd4 {[%clk 0:01:47.2]} 37...
f6 {[%clk 0:01:15.5]} 38. h4 {[%clk 0:01:36.7]} 38... h5 {[%clk 0:01:13.9]} 39.
e5 {[%clk 0:01:26.1]} 39... f5 {[%clk 0:01:14.1]} 40. c4 {[%clk 0:01:22.9]}
40... bxc4 {[%clk 0:01:01.2]} 41. Kxc4 {[%clk 0:01:23.8]} 41... g6 {[%clk
0:00:59.6]} 42. Kd4 {[%clk 0:01:22.6]} 1-0

[Event "Early-Titled-Tuesday-Blitz-January-30-2024"]
[Site "Chess.com"]
[Date "2024.01.30"]
[Round "3"]
[White "chessdjw"]
[Black "OparinGrigoriy"]
[Result "0-1"]
[WhiteElo "2743"]
[BlackElo "3013"]
[TimeControl "180+1"]
[EndTime "8:29:40 PST"]
[Termination "OparinGrigoriy won by checkmate"]

1. Nf3 {[%clk 0:02:58.1]} 1... c5 {[%clk 0:02:59.7]} 2. c4 {[%clk 0:02:55.7]}
2... Nc6 {[%clk 0:02:58.9]} 3. Nc3 {[%clk 0:02:55.5]} 3... Nf6 {[%clk
0:02:59.1]} 4. g3 {[%clk 0:02:54.9]} 4... e6 {[%clk 0:02:58.7]} 5. Bg2 {[%clk
0:02:49]} 5... d5 {[%clk 0:02:59.3]} 6. cxd5 {[%clk 0:02:49.6]} 6... exd5 {[%clk
0:03:00.2]} 7. d4 {[%clk 0:02:50]} 7... cxd4 {[%clk 0:03:00.3]} 8. Nxd4 {[%clk
0:02:50.4]} 8... Bc5 {[%clk 0:03:01]} 9. Nxc6 {[%clk 0:02:41.8]} 9... bxc6
{[%clk 0:03:00.9]} 10. Qc2 {[%clk 0:02:39.5]} 10... Bb6 {[%clk 0:02:59.4]} 11.
Na4 {[%clk 0:02:37.8]} 11... Bd7 {[%clk 0:02:59.6]} 12. O-O {[%clk 0:02:37]}
12... O-O {[%clk 0:02:59.7]} 13. Nxb6 {[%clk 0:02:35.3]} 13... axb6 {[%clk
0:02:59.9]} 14. a4 {[%clk 0:02:29.2]} 14... Re8 {[%clk 0:02:59.2]} 15. b4 {[%clk
0:02:26.2]} 15... h5 {[%clk 0:02:59.4]} 16. Bb2 {[%clk 0:02:22.5]} 16... h4
{[%clk 0:02:59.7]} 17. Bd4 {[%clk 0:02:05.2]} 17... Ne4 {[%clk 0:02:53.1]} 18.
Rfc1 {[%clk 0:02:01.6]} 18... Re6 {[%clk 0:02:27.9]} 19. Ra3 {[%clk 0:01:53.1]}
19... hxg3 {[%clk 0:02:20.5]} 20. hxg3 {[%clk 0:01:51.7]} 20... Rc8 {[%clk
0:01:40]} 21. Qb2 {[%clk 0:01:33.5]} 21... c5 {[%clk 0:01:14.4]} 22. bxc5 {[%clk
0:01:02.7]} 22... bxc5 {[%clk 0:01:15.3]} 23. Bxg7 {[%clk 0:01:02.6]} 23... Qg5
{[%clk 0:01:15]} 24. Bc3 {[%clk 0:00:54.5]} 24... d4 {[%clk 0:01:06.6]} 25. Be1
{[%clk 0:00:50.7]} 25... Bc6 {[%clk 0:00:59.1]} 26. a5 {[%clk 0:00:37.5]} 26...
Rh6 {[%clk 0:00:55]} 27. a6 {[%clk 0:00:26]} 27... Qh5 {[%clk 0:00:55]} 28. f3
{[%clk 0:00:15.7]} 28... Qh2+ {[%clk 0:00:46.1]} 29. Kf1 {[%clk 0:00:16.2]}
29... Nxg3+ {[%clk 0:00:46.3]} 30. Bxg3 {[%clk 0:00:16.1]} 30... Qxg3 {[%clk
0:00:47.2]} 31. Rxc5 {[%clk 0:00:12.3]} 31... Rh2 {[%clk 0:00:37.5]} 32. Qxd4
{[%clk 0:00:11.9]} 32... Qxg2+ {[%clk 0:00:36.9]} 33. Ke1 {[%clk 0:00:11.9]}
33... Qxe2# {[%clk 0:00:37.8]} 0-1

[Event "Early-Titled-Tuesday-Blitz-January-30-2024"]
[Site "Chess.com"]
[Date "2024.01.30"]
[Round "3"]
[White "KubaGepard"]
[Black "Mops_2004"]
[Result "1-0"]
[WhiteElo "2533"]
[BlackElo "2750"]
[TimeControl "180+1"]
[EndTime "8:29:40 PST"]
[Termination "KubaGepard won by resignation"]

1. d4 {[%clk 0:02:59.7]} 1... g6 {[%clk 0:03:00.2]} 2. Nf3 {[%clk 0:02:59]} 2...
Bg7 {[%clk 0:03:00.5]} 3. g3 {[%clk 0:02:59.5]} 3... f5 {[%clk 0:02:57.5]} 4.
Bg2 {[%clk 0:02:58.6]} 4... Nf6 {[%clk 0:02:58.1]} 5. O-O {[%clk 0:02:59.1]}
5... O-O {[%clk 0:02:58.8]} 6. b3 {[%clk 0:02:59.6]} 6... d6 {[%clk 0:02:58.7]}
7. Bb2 {[%clk 0:02:59.9]} 7... Ne4 {[%clk 0:02:59.1]} 8. Nbd2 {[%clk 0:02:59.2]}
8... Nc6 {[%clk 0:02:59.4]} 9. Ne1 {[%clk 0:02:59]} 9... Ng5 {[%clk 0:02:59.1]}
10. h4 {[%clk 0:02:46.4]} 10... Nf7 {[%clk 0:02:57.5]} 11. Nc4 {[%clk
0:02:28.7]} 11... e5 {[%clk 0:02:32.3]} 12. dxe5 {[%clk 0:02:27.1]} 12... dxe5
{[%clk 0:02:31.2]} 13. Bxc6 {[%clk 0:02:19]} 13... bxc6 {[%clk 0:02:30.6]} 14.
Nf3 {[%clk 0:02:19]} 14... e4 {[%clk 0:01:39.1]} 15. Bxg7 {[%clk 0:02:16.1]}
15... Kxg7 {[%clk 0:01:39.3]} 16. Qd4+ {[%clk 0:02:11.7]} 16... Qf6 {[%clk
0:01:29.3]} 17. Qxf6+ {[%clk 0:02:11]} 17... Kxf6 {[%clk 0:01:29.2]} 18. Nd4
{[%clk 0:02:11.6]} 18... Bd7 {[%clk 0:01:13.7]} 19. Rfd1 {[%clk 0:01:57.1]}
19... c5 {[%clk 0:01:12.3]} 20. Nf3 {[%clk 0:01:53.6]} 20... Be6 {[%clk
0:00:59.2]} 21. Nfd2 {[%clk 0:01:53.1]} 21... Rad8 {[%clk 0:00:52.6]} 22. e3
{[%clk 0:01:52.1]} 22... Rd7 {[%clk 0:00:47.8]} 23. Kf1 {[%clk 0:01:49.5]} 23...
Rfd8 {[%clk 0:00:47.7]} 24. Ke2 {[%clk 0:01:50]} 24... Nd6 {[%clk 0:00:28.7]}
25. Nxd6 {[%clk 0:01:46.2]} 25... cxd6 {[%clk 0:00:29.1]} 26. c4 {[%clk
0:01:41.6]} 26... a5 {[%clk 0:00:27.5]} 27. Nb1 {[%clk 0:01:39.5]} 27... a4
{[%clk 0:00:19.5]} 28. Nc3 {[%clk 0:01:39.2]} 28... axb3 {[%clk 0:00:19.8]} 29.
axb3 {[%clk 0:01:40.1]} 29... Rb8 {[%clk 0:00:17.9]} 30. Nb5 {[%clk 0:01:38.3]}
30... d5 {[%clk 0:00:18.3]} 31. Ra6 {[%clk 0:01:36.9]} 31... Ke7 {[%clk
0:00:18.9]} 32. Na7 {[%clk 0:01:27.2]} 32... Rxb3 {[%clk 0:00:10.3]} 33. Nc6+
{[%clk 0:01:27.1]} 33... Kf8 {[%clk 0:00:07.7]} 34. Ne5 {[%clk 0:01:23.4]} 34...
Rb2+ {[%clk 0:00:06.9]} 35. Kf1 {[%clk 0:01:21.7]} 35... Re7 {[%clk 0:00:04.1]}
36. cxd5 {[%clk 0:01:18.1]} 36... Bc8 {[%clk 0:00:03.5]} 37. Ra8 {[%clk
0:01:17.8]} 37... Rxe5 {[%clk 0:00:03.8]} 38. Rxc8+ {[%clk 0:01:17.8]} 38... Ke7
{[%clk 0:00:04.5]} 39. d6+ {[%clk 0:01:17]} 39... Kd7 {[%clk 0:00:04.7]} 40.
Rc7+ {[%clk 0:01:14.8]} 40... Kd8 {[%clk 0:00:05.1]} 41. Rxh7 {[%clk 0:01:15.2]}
41... c4 {[%clk 0:00:05.3]} 42. d7 {[%clk 0:01:14.4]} 42... Rb7 {[%clk
0:00:03.6]} 43. Rh8+ {[%clk 0:01:14.3]} 1-0

[Event "Early-Titled-Tuesday-Blitz-January-30-2024"]
[Site "Chess.com"]
[Date "2024.01.30"]
[Round "3"]
[White "olawsson"]
[Black "mistrzemi"]
[Result "1-0"]
[WhiteElo "2174"]
[BlackElo "2385"]
[TimeControl "180+1"]
[EndTime "8:29:40 PST"]
[Termination "olawsson won by resignation"]

1. d4 {[%clk 0:03:00.9]} 1... c5 {[%clk 0:03:00.9]} 2. d5 {[%clk 0:03:00.6]}
2... Nf6 {[%clk 0:03:01]} 3. c4 {[%clk 0:02:58.7]} 3... g6 {[%clk 0:03:00.3]} 4.
Nc3 {[%clk 0:02:58.8]} 4... Bg7 {[%clk 0:03:01.2]} 5. e4 {[%clk 0:02:58.9]} 5...
d6 {[%clk 0:03:00.5]} 6. Nf3 {[%clk 0:02:58.8]} 6... O-O {[%clk 0:03:01.1]} 7.
Be2 {[%clk 0:02:59.2]} 7... Bg4 {[%clk 0:03:01.4]} 8. O-O {[%clk 0:02:58.7]}
8... Na6 {[%clk 0:03:00.4]} 9. Bf4 {[%clk 0:02:57.6]} 9... Nd7 {[%clk
0:02:59.1]} 10. Qd2 {[%clk 0:02:57.2]} 10... Nc7 {[%clk 0:02:57.2]} 11. Bh6
{[%clk 0:02:37.7]} 11... Rb8 {[%clk 0:02:50.4]} 12. Bxg7 {[%clk 0:02:36.6]}
12... Kxg7 {[%clk 0:02:51.3]} 13. a4 {[%clk 0:02:27.9]} 13... Na6 {[%clk
0:02:49.5]} 14. Nb5 {[%clk 0:02:16.4]} 14... Bxf3 {[%clk 0:02:39.9]} 15. Bxf3
{[%clk 0:02:04.1]} 15... Ra8 {[%clk 0:02:37.5]} 16. Be2 {[%clk 0:01:43.1]} 16...
Nb4 {[%clk 0:02:23.8]} 17. f4 {[%clk 0:01:42.7]} 17... a6 {[%clk 0:02:23.4]} 18.
Nc3 {[%clk 0:01:42.6]} 18... f6 {[%clk 0:02:14.4]} 19. Bg4 {[%clk 0:01:31]}
19... Qc7 {[%clk 0:01:53.5]} 20. Be6 {[%clk 0:01:23.5]} 20... Rh8 {[%clk
0:01:50.7]} 21. Rae1 {[%clk 0:01:15.6]} 21... Nf8 {[%clk 0:01:49.5]} 22. e5
{[%clk 0:01:00.6]} 22... Nxe6 {[%clk 0:01:45.9]} 23. exf6+ {[%clk 0:01:00.2]}
23... exf6 {[%clk 0:01:43.3]} 24. Rxe6 {[%clk 0:00:44]} 24... Rae8 {[%clk
0:01:30.4]} 25. f5 {[%clk 0:00:44.1]} 25... g5 {[%clk 0:01:26.4]} 26. Ne4 {[%clk
0:00:32.1]} 26... Rhf8 {[%clk 0:01:15.8]} 27. Qc3 {[%clk 0:00:19.9]} 27... Rxe6
{[%clk 0:01:14.3]} 28. fxe6 {[%clk 0:00:16.3]} 28... Qe7 {[%clk 0:01:14.9]} 29.
Nxg5 {[%clk 0:00:16.4]} 29... Kh8 {[%clk 0:01:11.3]} 30. Ne4 {[%clk 0:00:16.1]}
30... b5 {[%clk 0:01:08]} 31. Nxf6 {[%clk 0:00:10.7]} 31... Qg7 {[%clk 0:01:01]}
32. Ne4 {[%clk 0:00:03.6]} 32... Rxf1+ {[%clk 0:01:00.3]} 33. Kxf1 {[%clk
0:00:03.3]} 33... Qxc3 {[%clk 0:01:00.8]} 34. bxc3 {[%clk 0:00:03.4]} 34... Kg7
{[%clk 0:00:59.8]} 35. cxb4 {[%clk 0:00:02.6]} 35... cxb4 {[%clk 0:01:00.7]} 36.
axb5 {[%clk 0:00:02.7]} 1-0